bitfinex/quotes_ETHUSD_20250223
["timestamp","ask_amount","ask_price","bid_price","bid_amount"]
[1740353760709,3.54354,2822.1,2821.6,5.0903]
[1740353761328,3.54358,2822.0,2821.6,5.0903]
[1740353761721,0.69736552,2821.9,2821.6,5.0903]
[1740353761921,0.69736552,2821.9,2821.6,5.09037]
[1740353762136,2.74300273,2822.2,2821.6,1.5463]
[1740353762310,0.26209806,2822.4,2821.8,1.5068]
[1740353762509,0.26209806,2822.4,2822.2,3.54333]
[1740353763046,0.72023694,2822.7,2822.3,1.6157]
[1740353763223,5.6782613,2823.7,2822.8,1.6157]
[1740353763423,1.36452613,2823.6,2823.1,3.54213]
[1740353763602,1.36452613,2823.6,2823.2,3.54203]
[1740353763800,0.69452434,2823.5,2823.1,3.54214]
[1740353765235,0.69452434,2823.5,2823.1,3.54211]
[1740353765751,0.69452434,2823.5,2822.9,5.39]
[1740353765752,3.54233,2823.0,2822.9,5.39]
[1740353766037,2.74300273,2823.1,2822.6,8.93281]
[1740353766204,5.07557,2823.2,2822.6,8.93281]
[1740353766601,3.54227,2823.1,2822.6,5.39]
[1740353766801,3.54235,2823.0,2822.6,5.39]
[1740353767101,3.54222,2823.1,2822.6,8.93282]
[1740353767440,3.54149,2823.7,2823.1,3.54212]
[1740353767441,5.07493,2823.7,2823.1,3.54212]
[1740353767642,3.54153,2823.7,2823.1,3.54212]
[1740353767934,3.54158,2823.6,2823.2,1.6357]
[1740353768547,4.26775073,2823.6,2823.2,1.6357]
[1740353769028,3.54191,2823.4,2823.2,1.6357]
[1740353769233,3.5419,2823.4,2823.2,1.6357]
[1740353769840,3.5417,2823.5,2823.2,1.6357]
[1740353770560,7.08349,2823.5,2823.2,1.6357]
[1740353770757,7.08349,2823.5,2822.8,5.39]
[1740353770758,3.54233,2823.0,2822.8,5.39]
[1740353770956,6.28545273,2822.9,2822.8,5.39]
[1740353771166,8.35714273,2822.9,2822.8,5.39]
[1740353771455,3.5427,2822.7,2822.0,1.6408]
[1740353771656,3.54289,2822.6,2822.1,3.54343]
[1740353772225,3.54289,2822.6,2822.0,5.18426]
[1740353772421,3.54297,2822.5,2822.0,5.18426]
[1740353773258,2.74300273,2822.6,2822.0,1.6408]
[1740353773558,5.18925,2822.5,2821.8,5.39]
[1740353773762,3.54357,2822.1,2821.8,5.39]
[1740353773921,3.54371,2821.9,2821.8,5.39]
[1740353774324,3.54371,2821.9,2821.4,6.9103]
[1740353774647,3.54391,2821.8,2821.4,6.9103]
[1740353775119,3.54405,2821.7,2821.4,6.9103]
[1740353776354,3.54391,2821.8,2821.4,6.9103]
[1740353776556,3.54421,2821.5,2821.4,6.9103]
[1740353776756,3.54421,2821.5,2821.4,5.39]
[1740353777062,3.54412,2821.6,2821.4,5.39]
[1740353777258,0.71102153,2821.8,2821.4,5.39]
[1740353777672,9.83038273,2822.0,2821.5,1.572]
[1740353777974,3.54371,2821.9,2821.5,1.572]
[1740353778459,5.07378,2822.2,2821.5,2.622625]
[1740353778661,3.54316,2822.4,2821.8,3.54382]
[1740353778861,3.54328,2822.3,2821.8,3.54377]
[1740353779028,3.54352,2822.1,2821.6,3.54398]
[1740353779223,3.54352,2822.1,2821.7,1.1556605]
[1740353779773,3.54327,2822.3,2821.7,1.1556605]
[1740353779975,3.54333,2822.2,2821.7,4.6996005]
[1740353780463,0.26818144,2822.5,2822.2,3.5433]
[1740353780633,5.7896277,2822.8,2822.2,8.9333]
[1740353780826,9.3323277,2822.8,2822.2,8.9333]
[1740353781135,3.54239,2823.0,2822.4,3.54298]
[1740353781355,3.54223,2823.1,2822.5,3.54295]
[1740353781661,3.54239,2823.0,2822.5,3.54295]
[1740353782034,3.54241,2823.0,2822.4,8.93307]
[1740353782255,0.26621089,2822.8,2822.4,8.93301]
[1740353782466,0.26621089,2822.8,2822.4,14.0075449]
[1740353782635,0.26621089,2822.8,2822.4,10.4645349]
[1740353782831,0.26621089,2822.8,2822.4,14.0075449]
[1740353783032,0.26621089,2822.8,2822.4,10.4645349]
[1740353783238,0.26621089,2822.8,2822.4,5.39]
[1740353783434,3.54295,2822.5,2822.4,5.39]
[1740353786238,3.54358,2822.0,2821.9,5.39]
[1740353787470,7.90480273,2822.3,2821.9,5.39]
[1740353787669,3.54339,2822.2,2821.9,5.39]
[1740353788063,7.90480273,2822.3,2821.9,5.39]
[1740353788260,7.90480273,2822.3,2821.7,7.0205]
[1740353788261,3.54359,2822.0,2821.7,7.0205]
[1740353789872,4.25250879,2822.0,2821.7,7.0205]
[1740353790280,3.54359,2822.0,2821.7,7.0205]
[1740353791987,3.54364,2822.0,2821.7,5.39]
[1740353792185,3.80410972,2822.0,2821.7,5.39]
[1740353793850,3.54383,2821.8,2821.7,5.39]
[1740353794385,3.54421,2821.5,2821.4,5.39]
[1740353794851,5.14703,2821.8,2821.4,5.39]
[1740353795051,3.54404,2821.7,2821.4,5.39]
[1740353796884,4.64837245,2822.0,2821.4,5.39]
[1740353797086,3.54415,2821.6,2821.4,5.39]
[1740353802196,4.64837245,2822.0,2821.4,5.39]
[1740353802383,0.26046972,2822.0,2821.6,3.54399]
[1740353803400,3.80405972,2822.0,2821.5,3.54421]
[1740353803597,3.54384,2821.8,2821.4,5.39]
[1740353803787,3.54402,2821.7,2821.4,5.39]
[1740353804298,7.08778,2821.8,2821.4,5.39]
[1740353804468,3.54405,2821.7,2821.4,5.39]
[1740353805176,3.54415,2821.6,2821.4,5.39]
[1740353806016,4.23656692,2821.6,2821.4,5.39]
[1740353808113,3.54421,2821.5,2821.4,5.39]
[1740353808501,0.69241692,2821.6,2821.4,5.39]
[1740353808502,4.23651692,2821.6,2821.4,5.39]
[1740353808818,3.54421,2821.5,2821.4,5.39]
[1740353810099,4.23649692,2821.6,2821.4,5.39]
[1740353810299,7.78066692,2821.6,2821.4,5.39]
[1740353810620,4.23649692,2821.6,2821.4,5.39]
[1740353810817,3.54421,2821.5,2821.4,5.39]
[1740353811016,4.59658097,2821.5,2820.9,5.39]
[1740353811319,3.54433,2821.4,2820.9,5.39]
[1740353811715,3.54465,2821.2,2820.9,5.39]
[1740353811918,3.54433,2821.4,2820.9,5.39]
[1740353812131,3.54484,2821.0,2820.9,5.39]
[1740353813022,1.6656,2821.3,2820.9,5.39]
[1740353813341,3.54484,2821.0,2820.9,5.39]
[1740353814091,3.54521,2820.7,2820.6,1.5659]
[1740353814296,3.5454,2820.6,2820.4,5.39]
[1740353814635,3.5449,2821.0,2820.4,5.39]
[1740353814791,3.5449,2821.0,2820.4,8.93553]
[1740353815127,6.9892643,2821.1,2820.4,8.93553]
[1740353815291,3.54503,2820.9,2820.4,5.39]
[1740353815496,3.54503,2820.9,2820.4,8.93559]
[1740353816411,3.54503,2820.9,2820.4,5.39]
[1740353816613,3.54503,2820.9,2820.4,8.93558]
[1740353817672,3.4444643,2821.1,2820.5,1.5296]
[1740353817949,0.70146157,2821.1,2820.7,3.54512]
[1740353818145,0.26224911,2821.2,2820.7,1.5296]
[1740353818310,3.54402,2821.7,2821.1,3.54467]
[1740353818513,0.70955782,2821.7,2821.2,1.5296]
[1740353818754,0.26046972,2822.0,2821.8,3.54377]
[1740353819048,0.26046972,2822.0,2821.8,5.07337]
[1740353819543,3.54327,2822.3,2821.8,5.07337]
[1740353819750,0.70458644,2822.1,2821.8,1.5296]
[1740353820050,4.24807644,2822.1,2821.8,1.5296]
[1740353820550,3.54349,2822.1,2821.8,1.5296]
[1740353821047,7.08662,2822.3,2821.8,1.5296]
[1740353821251,0.27229251,2822.2,2821.8,1.5296]
[1740353821419,3.81562251,2822.2,2821.8,1.5296]
[1740353821627,0.27229251,2822.2,2821.8,6.9196]
[1740353821803,3.54283,2822.6,2822.1,3.54343]
[1740353822148,3.54252,2822.9,2822.3,3.5432]
[1740353822351,3.54252,2822.9,2822.4,1.504]
[1740353822715,0.26965639,2822.7,2822.4,1.504]
[1740353824415,0.70381731,2822.8,2822.5,3.54293]
[1740353824817,0.27173334,2823.0,2822.7,3.5427]
[1740353825427,0.27173334,2823.0,2822.6,3.54279]
[1740353825629,0.27173334,2823.0,2822.6,8.179691]
[1740353825958,0.27173334,2823.0,2822.7,3.5427]
[1740353826727,0.27173334,2823.0,2822.7,7.08534]
[1740353827081,0.69394739,2823.1,2823.0,3.54233]
[1740353827214,1.6167,2823.8,2823.3,3.54185]
[1740353827570,1.6167,2824.1,2823.4,5.17402]
[1740353827727,0.26434167,2823.9,2823.6,3.5415]
[1740353828266,1.5195,2824.7,2824.0,5.11527]
[1740353828564,3.54033,2824.6,2824.1,8.93088]
[1740353828743,0.26178636,2824.5,2824.1,8.93088]
[1740353829411,0.26178636,2824.5,2824.1,6.794625]
[1740353829608,0.72066891,2824.4,2824.1,6.794625]
[1740353830466,3.80223636,2824.5,2824.1,6.794625]
[1740353831316,7.34280636,2824.5,2824.1,6.794625]
[1740353831518,3.80223636,2824.5,2824.1,6.794625]
[1740353832167,3.80223636,2824.5,2824.2,1.1909875]
[1740353832532,0.26178636,2824.5,2824.2,1.1909875]
[1740353832869,5.06612,2825.3,2824.5,5.09894]
[1740353833172,3.53982,2825.1,2824.6,3.5403]
[1740353833375,3.5399,2825.0,2824.5,1.5585]
[1740353833540,0.72081087,2824.9,2824.6,4.050146]
[1740353833731,3.53965,2825.2,2824.6,0.509906]
[1740353834071,0.26417104,2825.3,2824.6,0.509906]
[1740353834229,3.53994,2825.0,2824.5,1.5585]
[1740353834568,3.53994,2825.0,2824.5,5.09888]
[1740353834957,0.70339211,2825.1,2824.5,5.09888]
[1740353834958,0.70339211,2825.1,2824.6,3.54026]
[1740353835520,3.53963,2825.2,2824.6,3.54022]
[1740353835723,3.80368104,2825.3,2824.7,3.54019]
[1740353836041,3.80368104,2825.3,2824.8,0.708051]
[1740353836378,3.80368104,2825.3,2824.8,9.638111]
[1740353836670,4.51047803,2825.3,2824.8,9.638111]
[1740353836872,3.53957,2825.2,2824.8,6.098051]
[1740353837198,3.53989,2825.0,2824.8,6.098051]
[1740353837341,3.53989,2825.0,2824.9,0.6098051]
[1740353837531,3.53963,2825.2,2824.9,0.6098051]
[1740353838764,0.97096803,2825.3,2824.9,0.6098051]
[1740353838963,6.28218273,2825.6,2825.1,1.5523]
[1740353839170,3.53898,2825.7,2825.2,1.048206]
[1740353839345,3.53911,2825.6,2825.2,1.048206]
[1740353839843,2.74300273,2825.4,2825.0,5.39]
[1740353840039,3.53969,2825.1,2825.0,5.39]
[1740353841227,3.5394,2825.4,2825.0,5.39]
[1740353841553,3.53929,2825.5,2825.0,8.92979]
[1740353842158,3.53929,2825.5,2825.1,1.5309]
[1740353842657,3.53934,2825.4,2825.1,1.5309]
[1740353843561,4.53018118,2825.6,2825.1,6.116549]
[1740353843784,0.99103118,2825.6,2825.2,3.53954]
[1740353844294,3.53925,2825.5,2825.1,2.576969]
[1740353844495,3.53951,2825.3,2825.1,2.576969]
[1740353844654,3.53951,2825.3,2825.2,5.39]
[1740353849067,6.28251273,2825.3,2825.2,5.39]
[1740353850610,3.53971,2825.1,2824.9,5.39]
[1740353850767,6.28282273,2825.0,2824.9,5.39]
[1740353853805,5.17555,2825.5,2824.9,5.39]
[1740353854007,3.5397,2825.1,2824.9,5.39]
[1740353854160,3.53982,2825.0,2824.9,5.39]
[1740353860724,4.23577315,2825.0,2824.9,5.39]
[1740353863541,3.53982,2825.0,2824.9,5.39]
[1740353865738,3.53956,2825.3,2824.9,5.39]
[1740353865950,3.80624711,2825.6,2825.0,1.6314]
[1740353866133,3.53935,2825.4,2825.0,5.17114]
[1740353866297,3.53903,2825.7,2825.0,3.53974]
[1740353866500,0.70361345,2825.7,2825.3,3.53936]
[1740353866849,6.28141273,2826.2,2825.5,5.17052]
[1740353867011,3.53879,2825.9,2825.6,5.39]
[1740353867218,3.5387,2825.9,2825.6,5.39]
[1740353867433,4.26013658,2825.9,2825.6,5.39]
[1740353867807,3.53894,2825.7,2825.6,5.39]
[1740353870903,7.07776,2825.8,2825.6,5.39]
[1740353871103,7.00313931,2825.9,2825.6,6.07944]
[1740353871316,0.26568981,2825.8,2825.6,6.07944]
[1740353873100,0.26568981,2825.8,2825.7,3.53894]
[1740353873303,6.28137273,2826.2,2825.8,1.5457]
[1740353873651,3.53845,2826.1,2825.8,1.5457]
[1740353873851,3.53868,2826.0,2825.8,1.5457]
[1740353874456,4.24884064,2826.1,2825.8,1.5457]
[1740353874659,3.53858,2826.0,2825.8,1.5457]
[1740353875756,4.24884064,2826.1,2825.8,1.5457]
[1740353875906,3.53862,2826.0,2825.8,1.5457]
[1740353877280,3.53862,2826.0,2825.9,5.39]
[1740353877440,0.71039064,2826.1,2825.9,5.39]
[1740353877955,1.90325822,2826.6,2825.9,6.96457]
[1740353877956,3.53812,2826.4,2825.9,6.96457]
[1740353878166,3.53825,2826.3,2825.9,6.96457]
[1740353879027,3.53795,2826.5,2825.9,6.96457]
[1740353879328,3.53821,2826.3,2825.9,6.96457]
[1740353880242,4.25696819,2826.3,2825.9,6.96457]
[1740353880516,3.53836,2826.2,2826.0,1.204908]
[1740353880747,3.53839,2826.2,2826.0,1.204908]
[1740353882040,0.71875819,2826.3,2826.0,1.204908]
[1740353882748,4.25701819,2826.3,2826.0,1.204908]
[1740353883273,3.53838,2826.2,2826.1,5.39]
[1740353885364,0.26265822,2826.6,2826.3,3.53809]
[1740353885876,0.26265822,2826.6,2826.2,1.583]
[1740353886040,0.26265822,2826.6,2826.2,5.1213]
[1740353886887,0.26265822,2826.6,2826.3,3.53817]
[1740353887054,0.26265822,2826.6,2826.4,0.512117]
[1740353887460,3.53716,2827.2,2826.6,1.583]
[1740353887654,0.71688347,2827.1,2826.8,3.5375]
[1740353887856,0.71688347,2827.1,2826.8,1.05105]
[1740353888286,3.53677,2827.5,2827.0,1.5002]
[1740353888577,3.53677,2827.5,2827.0,5.03742]
[1740353888779,6.27952273,2827.7,2827.1,3.53713]
[1740353888944,3.53645,2827.7,2827.2,6.9155]
[1740353889143,3.53645,2827.7,2827.3,5.39]
[1740353889144,3.53656,2827.6,2827.3,5.39]
[1740353889371,1.5466,2827.1,2826.1,5.06386]
[1740353889582,3.53772,2826.7,2826.3,1.5255]
[1740353889784,3.53691,2827.4,2826.9,1.601]
[1740353889955,0.26146471,2827.1,2827.0,5.39]
[1740353890155,3.53595,2828.1,2827.5,3.53658]
[1740353890355,4.31960273,2828.4,2827.0,14.05741]
[1740353890356,3.5361,2828.0,2827.6,6.991]
[1740353890557,3.53606,2828.0,2827.6,6.991]
[1740353890773,3.53644,2827.7,2827.6,5.39]
[1740353891170,1.5766,2827.6,2826.6,1.601]
[1740353891383,3.53745,2826.9,2826.6,6.991]
[1740353891744,6.27980273,2827.5,2826.6,5.39]
[1740353891948,3.00510535,2827.8,2826.8,1.601]
[1740353892161,3.00510535,2827.8,2827.4,1.601]
[1740353892162,0.26210262,2827.8,2827.4,1.601]
[1740353892352,0.26210262,2827.8,2827.5,8.92668]
[1740353892785,7.0722,2828.0,2827.5,10.333132]
[1740353892965,4.23223606,2828.0,2827.5,6.796452]
[1740353893283,3.80633996,2827.9,2827.5,5.39]
[1740353893470,3.53629,2827.9,2827.5,5.39]
[1740353893680,4.23223606,2828.0,2827.5,5.39]
[1740353893880,3.53622,2827.9,2827.5,5.39]
[1740353894585,3.53634,2827.8,2827.5,5.39]
[1740353894753,3.53634,2827.8,2827.5,7.323786]
[1740353896598,3.53619,2827.9,2827.5,7.323786]
[1740353897368,3.53656,2827.6,2827.5,7.323786]
[1740353897571,3.53656,2827.6,2827.5,5.39]
[1740353897769,3.53645,2827.7,2827.5,5.39]
[1740353898320,3.53656,2827.6,2827.5,5.39]
[1740353898816,2.74300273,2827.8,2827.5,5.39]
[1740353899120,3.53656,2827.6,2827.5,6.9701]
[1740353899283,3.53656,2827.6,2827.5,5.39]
[1740353901116,2.74300273,2827.8,2827.5,5.39]
[1740353901282,6.27934273,2827.8,2827.5,5.39]
[1740353901623,3.53628,2827.9,2827.5,6.437865]
[1740353901774,7.2578609,2828.1,2827.5,6.437865]
[1740353901973,3.53609,2828.0,2827.5,9.974545]
[1740353902499,3.7218609,2828.1,2827.6,3.53656]
[1740353902670,3.7218609,2828.1,2827.5,6.437865]
[1740353902873,3.53607,2828.0,2827.5,9.974525]
[1740353903118,3.53607,2828.0,2827.5,6.437865]
[1740353903564,3.53607,2828.0,2827.5,9.974495]
[1740353904620,3.53607,2828.0,2827.6,3.53655]
[1740353905521,0.26158865,2828.1,2827.7,1.6156]
[1740353905687,0.2685727,2828.4,2827.6,15.7062955]
[1740353905884,0.2685727,2828.4,2828.0,3.53606]
[1740353906070,0.2685727,2828.4,2828.2,1.6156]
[1740353906275,0.005,2828.9,2828.2,15.8156]
[1740353906604,0.9822376,2828.9,2828.3,1.6156]
[1740353906773,3.53556,2828.4,2828.2,14.2]
[1740353906972,3.53569,2828.3,2828.2,14.2]
[1740353907415,3.53569,2828.3,2828.2,5.39]
[1740353907618,3.53619,2827.9,2827.8,5.39]
[1740353908087,2.74300273,2828.0,2827.8,5.39]
[1740353908491,6.27913273,2828.0,2827.8,5.39]
[1740353909021,3.53583,2828.2,2827.8,5.39]
[1740353909321,3.53619,2827.9,2827.8,5.39]
[1740353909505,3.53604,2828.1,2827.8,5.39]
[1740353909688,6.98222161,2828.3,2827.8,5.39]
[1740353909689,4.23921888,2828.3,2827.8,6.9607]
[1740353910018,3.53593,2828.2,2827.8,6.9607]
[1740353910320,6.27851273,2828.5,2828.0,3.53601]
[1740353910476,3.53566,2828.4,2827.8,10.4969]
[1740353910680,6.27851273,2828.5,2827.8,6.9607]
[1740353910681,3.53577,2828.3,2827.8,6.9607]
[1740353910873,3.53588,2828.2,2827.9,1.72777]
[1740353911071,3.53531,2828.7,2828.2,3.53581]
[1740353911276,3.80078026,2828.9,2828.3,1.5903]
[1740353911523,0.26576026,2828.9,2828.5,3.53533]
[1740353911918,0.26576026,2828.9,2828.4,3.5355]
[1740353912120,0.26576026,2828.9,2828.5,4.04797]
[1740353912352,3.80071026,2828.9,2828.5,4.04797]
[1740353913222,7.33576026,2828.9,2828.5,0.51258]
[1740353913523,3.53525,2828.7,2828.5,0.51258]
[1740353913691,3.53538,2828.6,2828.3,1.5903]
[1740353914027,3.53556,2828.4,2828.2,5.39]
[1740353914231,2.74300273,2828.8,2828.2,5.39]
[1740353914384,3.53569,2828.3,2828.2,5.39]
[1740353914737,3.53537,2828.6,2828.2,5.39]
[1740353915084,3.53547,2828.5,2828.2,5.39]
[1740353915309,2.74300273,2828.8,2828.3,1.5049]
[1740353915310,3.53514,2828.8,2828.3,1.5049]
[1740353915624,0.26576026,2828.9,2828.5,3.53533]
[1740353915824,0.26576026,2828.9,2828.7,3.53514]
[1740353916123,0.26576026,2828.9,2828.8,5.03996]
[1740353916124,0.005,2828.9,2828.8,5.03996]
[1740353916332,0.005,2828.9,2828.8,10.42996]
[1740353917326,0.005,2828.9,2828.8,19.23996]
[1740353917538,0.005,2828.9,2828.8,15.7049]
[1740353917722,0.005,2828.9,2828.8,17.41448498]
[1740353918237,0.005,2828.9,2828.8,20.94954498]
[1740353919033,0.005,2828.9,2828.8,21.60294498]
[1740353919536,0.005,2828.9,2828.8,24.60294498]
[1740353920594,0.005,2828.9,2828.8,24.05294498]
[1740353921194,0.005,2828.9,2828.8,20.51788498]
[1740353921642,0.005,2828.9,2828.8,24.05294498]
[1740353921825,0.005,2828.9,2828.8,20.51788498]
[1740353921998,0.005,2828.9,2828.8,14.2]
[1740353922464,0.005,2828.9,2828.8,22.34816]
[1740353923026,0.005,2828.9,2828.8,15.8131]
[1740353923673,0.005,2828.9,2828.8,19.34816]
[1740353924026,0.005,2828.9,2828.8,15.8131]
[1740353924664,3.53994,2828.9,2828.8,5.39]
[1740353924823,4.23212782,2828.9,2828.8,5.39]
[1740353925042,3.53994,2828.9,2828.8,5.39]
[1740353926491,0.005,2828.9,2828.8,5.39]
[1740353927339,3.53994,2828.9,2828.8,5.39]
[1740353927551,0.005,2828.9,2828.8,5.39]
[1740353928492,0.005,2828.9,2828.8,11.40909]
[1740353928897,0.005,2828.9,2828.8,7.87403]
[1740353929605,0.005,2828.9,2828.8,6.9815]
[1740353930127,0.005,2828.9,2828.8,5.39]
[1740353930835,0.005,2828.9,2828.8,8.92506]
[1740353931136,0.005,2828.9,2828.8,5.39]
[1740353933630,3.53994,2828.9,2828.8,5.39]
[1740353933807,0.005,2828.9,2828.4,5.39]
[1740353934003,0.005,2828.9,2828.5,5.464269]
[1740353934703,0.005,2828.9,2828.6,3.53524]
[1740353934900,0.005,2828.9,2828.7,3.53512]
[1740353935132,0.005,2828.9,2828.5,5.464279]
[1740353935291,0.005,2828.9,2828.6,1.0854279]
[1740353935730,0.005,2828.9,2828.7,3.53513]
[1740353935929,0.005,2828.9,2828.8,5.11126]
[1740353939258,0.005,2828.9,2828.8,8.11126]
[1740353939630,0.005,2828.9,2828.8,22.31126]
[1740353939931,0.005,2828.9,2828.8,23.08121108]
[1740353940131,0.005,2828.9,2828.8,23.40820548]
[1740353940559,0.005,2828.9,2828.8,16.87314548]
[1740353940859,0.005,2828.9,2828.8,14.5269944]
[1740353941649,0.005,2828.9,2828.8,14.2]
[1740353942956,3.53994,2828.9,2828.8,14.2]
[1740353943370,0.005,2828.9,2828.8,14.2]
[1740353945685,0.005,2828.9,2828.8,5.39]
[1740353945871,0.005,2828.9,2828.8,20.92280279]
[1740353946467,0.005,2828.9,2828.8,15.83918539]
[1740353946770,3.53994,2828.9,2828.8,14.57261592]
[1740353947128,0.005,2828.9,2828.8,18.10767592]
[1740353947332,0.005,2828.9,2828.8,14.57261592]
[1740353947666,0.005,2828.9,2828.8,14.3106426]
[1740353947843,0.005,2828.9,2828.8,14.2]
[1740353951586,0.005,2828.9,2828.8,5.39]
[1740353954088,0.005,2828.9,2828.3,5.39]
[1740353954089,1.6292,2828.8,2828.3,5.39]
[1740353954242,5.16433,2828.8,2828.3,8.92568]
[1740353954447,8.6995,2828.8,2828.3,8.92568]
[1740353954843,3.53619,2827.9,2827.8,5.39]
[1740353955144,3.53596,2828.1,2827.8,5.39]
[1740353955359,3.53613,2828.0,2827.8,5.39]
[1740353955752,3.5359,2828.2,2827.8,5.39]
[1740353956475,1.5422,2828.3,2827.8,5.39]
[1740353956645,3.53588,2828.2,2827.8,5.39]
[1740353957155,1.5422,2828.3,2827.8,5.39]
[1740353957341,7.00452656,2828.4,2828.0,3.53599]
[1740353957342,2.74300273,2828.4,2828.0,3.53599]
[1740353957748,6.27863273,2828.4,2827.9,5.15979]
[1740353958055,3.53569,2828.3,2827.9,1.6236]
[1740353958788,3.53606,2828.0,2827.8,5.39]
[1740353959285,3.53619,2827.9,2827.8,5.39]
[1740353959845,5.17226,2828.0,2827.8,5.39]
[1740353960105,2.78131627,2828.0,2827.8,5.39]
[1740353960273,3.53619,2827.9,2827.8,5.39]
[1740353960783,5.17227,2828.0,2827.8,5.39]
[1740353961162,1.6362,2828.0,2827.8,5.39]
[1740353962618,5.17228,2828.0,2827.8,5.39]
[1740353967568,3.53619,2827.9,2827.8,5.39]
[1740353967769,1.6362,2828.0,2827.8,5.39]
[1740353967967,5.17234,2828.0,2827.8,5.39]
[1740353968167,3.53619,2827.9,2827.8,5.39]
[1740353972416,4.68134327,2827.9,2827.8,5.39]
[1740353972631,5.12174,2827.3,2827.2,5.39]
[1740353972787,5.12174,2827.3,2826.8,1.514]
[1740353972788,7.86474273,2827.3,2826.8,1.514]
[1740353973000,3.53708,2827.2,2826.9,5.39]
[1740353973299,7.86474273,2827.3,2826.9,5.39]
[1740353973909,3.53707,2827.2,2826.9,5.39]
[1740353975004,3.53708,2827.2,2826.9,5.39]
[1740353978159,3.53727,2827.1,2826.9,5.39]
[1740353978365,3.53731,2827.0,2826.9,5.39]
[1740353978567,6.98777073,2827.0,2826.9,5.39]
[1740353979335,6.28031273,2827.0,2826.9,5.39]
[1740353979687,7.92231273,2827.0,2826.9,5.39]
[1740353980451,3.53833,2826.2,2826.0,5.39]
[1740353982081,9.81930273,2826.4,2826.0,5.39]
[1740353982256,6.28114273,2826.4,2826.0,5.39]
[1740353982581,2.74300273,2826.4,2826.0,5.39]
[1740353982882,2.74300273,2826.4,2826.2,3.53825]
[1740353983036,6.28071273,2826.7,2826.2,3.53825]
[1740353983435,0.27158966,2826.6,2826.2,3.53825]
[1740353984367,0.99249746,2826.6,2826.2,8.92825]
[1740353984884,4.53033746,2826.6,2826.2,5.39]
[1740353985694,2.74300273,2826.4,2826.2,5.39]
[1740353985877,5.04289,2826.3,2826.2,5.39]
[1740353986570,3.53877,2825.9,2825.7,5.39]
[1740353987082,6.28154273,2826.1,2825.7,5.39]
[1740353987282,3.53857,2826.0,2825.7,5.39]
[1740353988761,1.615,2825.8,2824.9,1.6259]
[1740353988961,2.74300273,2825.4,2825.0,5.39]
[1740353989650,3.53947,2825.3,2825.0,5.39]
[1740353990290,3.53969,2825.1,2825.0,5.39]
[1740353990591,3.53957,2825.2,2824.7,1.6436]
[1740353991063,3.53957,2825.2,2824.7,5.18378]
[1740353991261,6.28279273,2825.1,2824.6,5.39]
[1740353991661,2.74300273,2825.1,2824.8,3.54006]
[1740353992074,2.74300273,2825.1,2824.6,8.93032]
[1740353992277,2.74300273,2825.1,2824.6,8.93026]
[1740353992551,2.74300273,2825.1,2824.8,3.54005]
[1740353993383,3.46492302,2825.4,2824.8,4.433075]
[1740353993690,3.80846681,2825.8,2825.4,3.53923]
[1740353993691,2.74300273,2825.7,2825.4,3.53923]
[1740353993895,3.53939,2825.4,2825.3,5.39]
[1740353994105,2.74300273,2825.3,2824.9,8.92982]
[1740353994304,2.3769498,2825.6,2825.2,3.53957]
[1740353994505,2.74300273,2825.6,2825.3,3.53938]
[1740353996490,0.26957681,2825.8,2825.3,3.53933]
[1740353997001,0.26957681,2825.8,2825.2,5.19414]
[1740353997203,3.80841681,2825.8,2825.2,5.19414]
[1740353997405,0.26957681,2825.8,2825.4,3.53932]
[1740353997561,0.26957681,2825.8,2825.4,8.92932]
[1740353997957,0.26957681,2825.8,2825.4,5.39]
[1740353998164,0.26957681,2825.8,2825.5,3.53913]
[1740353998364,0.9873633,2825.8,2825.5,3.53913]
[1740353999566,0.9873633,2825.8,2825.4,5.39]
[1740353999770,0.9873633,2825.8,2825.5,3.53917]
[1740354000172,0.26957681,2825.8,2825.5,3.53917]
[1740354000479,0.26957681,2825.8,2825.5,3.53911]
[1740354001713,0.26957681,2825.8,2825.5,5.39]
[1740354001884,2.74300273,2825.6,2825.5,5.39]
[1740354002086,1.6122,2825.7,2825.5,5.39]
[1740354002286,0.26957681,2825.8,2825.5,5.39]
[1740354002490,2.74300273,2825.6,2825.5,5.39]
[1740354004719,3.53888,2825.8,2825.5,5.39]
[1740354004873,0.71388547,2825.9,2825.6,1.5985]
[1740354005078,1.5996,2826.5,2825.7,5.39]
[1740354005320,1.5996,2826.5,2826.0,3.53849]
[1740354005698,5.83129235,2826.5,2825.8,3.53882]
[1740354005989,2.74300273,2826.4,2825.9,3.53861]
[1740354006191,2.74300273,2826.4,2825.8,5.472482]
[1740354006393,2.74300273,2826.4,2826.0,3.53854]
[1740354007314,6.28113273,2826.4,2825.8,5.472472]
[1740354007515,3.53825,2826.3,2825.7,8.92893]
[1740354007920,2.74300273,2826.4,2825.7,5.39]
[1740354008218,2.74300273,2826.4,2826.1,3.53841]
[1740354008582,1.5996,2826.5,2826.1,3.53836]
[1740354009191,3.5382,2826.3,2825.7,5.39]
[1740354010236,3.53833,2826.2,2825.7,5.39]
[1740354010733,3.53882,2825.8,2825.7,5.39]
[1740354010933,6.28182273,2825.8,2825.7,5.39]
[1740354011612,3.53902,2825.7,2825.2,5.39]
[1740354012702,5.07047777,2825.8,2825.2,8.92956]
[1740354012900,5.07047777,2825.8,2825.3,3.53935]